Workbook

Sheet 学术型
A1: 序号 | B1: 报考学习方式 | C1: 报考院系 | D1: 报考专业 | E1: 考生姓名 | F1: 考生编号 | G1: 政治理论成绩 | H1: 外国语成绩 | I1: 业务课一成绩 | J1: 业务课二成绩 | K1: 初试总成绩 | L1: 备注
A2: 1 | B2: 全日制 | C2: 石油工程学院 | D2: 力学 | E2: 陈厚泽 | F2: 114140141013761 | G2: 54 | H2: 61 | I2: 59 | J2: 120 | K2: 294
A3: 2 | B3: 全日制 | C3: 石油工程学院 | D3: 油气井工程 | E3: 陈昭廷 | F3: 114140111640977 | G3: 68 | H3: 62 | I3: 57 | J3: 128 | K3: 315
A4: 3 | B4: 全日制 | C4: 石油工程学院 | D4: 油气井工程 | E4: 刘芳娆 | F4: 114140111640997 | G4: 51 | H4: 66 | I4: 88 | J4: 118 | K4: 323
A5: 4 | B5: 全日制 | C5: 石油工程学院 | D5: 油气井工程 | E5: 姜凯宁 | F5: 114140111641003 | G5: 57 | H5: 56 | I5: 80 | J5: 110 | K5: 303
A6: 5 | B6: 全日制 | C6: 石油工程学院 | D6: 油气井工程 | E6: 葛振兴 | F6: 114140111641270 | G6: 58 | H6: 40 | I6: 83 | J6: 117 | K6: 298
A7: 6 | B7: 全日制 | C7: 石油工程学院 | D7: 油气井工程 | E7: 张家豪 | F7: 114140111641298 | G7: 56 | H7: 71 | I7: 96 | J7: 140 | K7: 363
A8: 7 | B8: 全日制 | C8: 石油工程学院 | D8: 油气井工程 | E8: 马旭昇 | F8: 114140111641305 | G8: 69 | H8: 58 | I8: 79 | J8: 135 | K8: 341
A9: 8 | B9: 全日制 | C9: 石油工程学院 | D9: 油气井工程 | E9: 宋子豪 | F9: 114140111641314 | G9: 61 | H9: 54 | I9: 85 | J9: 138 | K9: 338
A10: 9 | B10: 全日制 | C10: 石油工程学院 | D10: 油气井工程 | E10: 石静 | F10: 114140111641316 | G10: 52 | H10: 58 | I10: 86 | J10: 137 | K10: 333
A11: 10 | B11: 全日制 | C11: 石油工程学院 | D11: 油气井工程 | E11: 樊子潇 | F11: 114140111641379 | G11: 65 | H11: 67 | I11: 103 | J11: 119 | K11: 354
A12: 11 | B12: 全日制 | C12: 石油工程学院 | D12: 油气井工程 | E12: 胡萧 | F12: 114140111641386 | G12: 60 | H12: 53 | I12: 101 | J12: 105 | K12: 319
A13: 12 | B13: 全日制 | C13: 石油工程学院 | D13: 油气井工程 | E13: 张彦欢 | F13: 114140111641434 | G13: 60 | H13: 52 | I13: 75 | J13: 129 | K13: 316
A14: 13 | B14: 全日制 | C14: 石油工程学院 | D14: 油气井工程 | E14: 曾悦 | F14: 114140111641436 | G14: 60 | H14: 57 | I14: 84 | J14: 115 | K14: 316
A15: 14 | B15: 全日制 | C15: 石油工程学院 | D15: 油气井工程 | E15: 李有翼 | F15: 114140111641437 | G15: 65 | H15: 42 | I15: 90 | J15: 122 | K15: 319
A16: 15 | B16: 全日制 | C16: 石油工程学院 | D16: 油气井工程 | E16: 张言 | F16: 114140111641441 | G16: 74 | H16: 75 | I16: 74 | J16: 139 | K16: 362
A17: 16 | B17: 全日制 | C17: 石油工程学院 | D17: 油气井工程 | E17: 罗麟 | F17: 114140111641443 | G17: 58 | H17: 50 | I17: 104 | J17: 121 | K17: 333
A18: 17 | B18: 全日制 | C18: 石油工程学院 | D18: 油气井工程 | E18: 许晓斗 | F18: 114140111641463 | G18: 75 | H18: 54 | I18: 91 | J18: 123 | K18: 343
A19: 18 | B19: 全日制 | C19: 石油工程学院 | D19: 油气井工程 | E19: 隋天阳 | F19: 114140111641524 | G19: 62 | H19: 48 | I19: 67 | J19: 123 | K19: 300
A20: 19 | B20: 全日制 | C20: 石油工程学院 | D20: 油气井工程 | E20: 杨睿智 | F20: 114140111641589 | G20: 59 | H20: 52 | I20: 66 | J20: 124 | K20: 301
A21: 20 | B21: 全日制 | C21: 石油工程学院 | D21: 油气井工程 | E21: 季钊 | F21: 114140111641597 | G21: 63 | H21: 64 | I21: 97 | J21: 114 | K21: 338
A22: 21 | B22: 全日制 | C22: 石油工程学院 | D22: 油气井工程 | E22: 李龙瑞 | F22: 114140111641601 | G22: 62 | H22: 48 | I22: 79 | J22: 130 | K22: 319
A23: 22 | B23: 全日制 | C23: 石油工程学院 | D23: 油气井工程 | E23: 吴邦宸 | F23: 114140111641613 | G23: 60 | H23: 50 | I23: 83 | J23: 109 | K23: 302
A24: 23 | B24: 全日制 | C24: 石油工程学院 | D24: 油气井工程 | E24: 王全 | F24: 114140111641629 | G24: 54 | H24: 65 | I24: 75 | J24: 132 | K24: 326
A25: 24 | B25: 全日制 | C25: 石油工程学院 | D25: 油气井工程 | E25: 李曜旸 | F25: 114140111641646 | G25: 60 | H25: 64 | I25: 73 | J25: 139 | K25: 336
A26: 25 | B26: 全日制 | C26: 石油工程学院 | D26: 油气井工程 | E26: 胡桂宇 | F26: 114140111641675 | G26: 65 | H26: 44 | I26: 81 | J26: 115 | K26: 305
A27: 26 | B27: 全日制 | C27: 石油工程学院 | D27: 油气井工程 | E27: 何鑫 | F27: 114140112151811 | G27: 66 | H27: 58 | I27: 76 | J27: 136 | K27: 336
A28: 27 | B28: 全日制 | C28: 石油工程学院 | D28: 油气井工程 | E28: 王正 | F28: 114140112161814 | G28: 53 | H28: 56 | I28: 71 | J28: 124 | K28: 304
A29: 28 | B29: 全日制 | C29: 石油工程学院 | D29: 油气井工程 | E29: 张润雪 | F29: 114140113082041 | G29: 66 | H29: 59 | I29: 84 | J29: 97 | K29: 306
A30: 29 | B30: 全日制 | C30: 石油工程学院 | D30: 油气井工程 | E30: 李建成 | F30: 114140114072278 | G30: 56 | H30: 62 | I30: 66 | J30: 112 | K30: 296
A31: 30 | B31: 全日制 | C31: 石油工程学院 | D31: 油气井工程 | E31: 王恒阳 | F31: 114140133112976 | G31: 71 | H31: 68 | I31: 88 | J31: 108 | K31: 335
A32: 31 | B32: 全日制 | C32: 石油工程学院 | D32: 油气井工程 | E32: 甘茂宗 | F32: 114140136083096 | G32: 67 | H32: 68 | I32: 65 | J32: 75 | K32: 275
A33: 32 | B33: 全日制 | C33: 石油工程学院 | D33: 油气井工程 | E33: 黄志洋 | F33: 114140136113102 | G33: 66 | H33: 52 | I33: 82 | J33: 142 | K33: 342
A34: 33 | B34: 全日制 | C34: 石油工程学院 | D34: 油气井工程 | E34: 马佳蓥 | F34: 114140137023219 | G34: 61 | H34: 44 | I34: 66 | J34: 112 | K34: 283
A35: 34 | B35: 全日制 | C35: 石油工程学院 | D35: 油气井工程 | E35: 赵英晓 | F35: 114140137063414 | G35: 68 | H35: 51 | I35: 107 | J35: 116 | K35: 342
A36: 35 | B36: 全日制 | C36: 石油工程学院 | D36: 油气井工程 | E36: 李志强 | F36: 114140137073481 | G36: 71 | H36: 61 | I36: 86 | J36: 141 | K36: 359
A37: 36 | B37: 全日制 | C37: 石油工程学院 | D37: 油气井工程 | E37: 陈晗 | F37: 114140141083827 | G37: 59 | H37: 40 | I37: 83 | J37: 136 | K37: 318
A38: 37 | B38: 全日制 | C38: 石油工程学院 | D38: 油气井工程 | E38: 李托 | F38: 114140141323941 | G38: 65 | H38: 49 | I38: 103 | J38: 124 | K38: 341
A39: 38 | B39: 全日制 | C39: 石油工程学院 | D39: 油气井工程 | E39: 刘长松 | F39: 114140141323942 | G39: 62 | H39: 54 | I39: 87 | J39: 109 | K39: 312
A40: 39 | B40: 全日制 | C40: 石油工程学院 | D40: 油气井工程 | E40: 辛世琳 | F40: 114140141323943 | G40: 72 | H40: 41 | I40: 70 | J40: 97 | K40: 280
A41: 40 | B41: 全日制 | C41: 石油工程学院 | D41: 油气井工程 | E41: 廖星奥 | F41: 114140142114058 | G41: 64 | H41: 54 | I41: 99 | J41: 104 | K41: 321
A42: 41 | B42: 全日制 | C42: 石油工程学院 | D42: 油气井工程 | E42: 余星 | F42: 114140142114060 | G42: 63 | H42: 41 | I42: 85 | J42: 134 | K42: 323
A43: 42 | B43: 全日制 | C43: 石油工程学院 | D43: 油气井工程 | E43: 栾添 | F43: 114140142114061 | G43: 66 | H43: 56 | I43: 81 | J43: 102 | K43: 305 | L43: 预录取
A44: 43 | B44: 全日制 | C44: 石油工程学院 | D44: 油气井工程 | E44: 罗雨阳 | F44: 114140150144318 | G44: 66 | H44: 44 | I44: 115 | J44: 120 | K44: 345
A45: 44 | B45: 全日制 | C45: 石油工程学院 | D45: 油气井工程 | E45: 张奕涵 | F45: 114140150144319 | G45: 55 | H45: 49 | I45: 75 | J45: 131 | K45: 310
A46: 45 | B46: 全日制 | C46: 石油工程学院 | D46: 油气井工程 | E46: 张敏 | F46: 114140151104359 | G46: 63 | H46: 55 | I46: 87 | J46: 119 | K46: 324
A47: 46 | B47: 全日制 | C47: 石油工程学院 | D47: 油气井工程 | E47: 张一璞 | F47: 114140151104360 | G47: 62 | H47: 67 | I47: 60 | J47: 116 | K47: 305
A48: 47 | B48: 全日制 | C48: 石油工程学院 | D48: 油气井工程 | E48: 侯长明 | F48: 114140151104361 | G48: 67 | H48: 73 | I48: 76 | J48: 118 | K48: 334
A49: 48 | B49: 全日制 | C49: 石油工程学院 | D49: 油气井工程 | E49: 魏耀冉 | F49: 114140151104362 | G49: 67 | H49: 64 | I49: 89 | J49: 136 | K49: 356
A50: 49 | B50: 全日制 | C50: 石油工程学院 | D50: 油气井工程 | E50: 雍煜宁 | F50: 114140151104363 | G50: 58 | H50: 58 | I50: 88 | J50: 126 | K50: 330
A51: 50 | B51: 全日制 | C51: 石油工程学院 | D51: 油气井工程 | E51: 吴沂臻 | F51: 114140151454467 | G51: 62 | H51: 58 | I51: 72 | J51: 128 | K51: 320
A52: 51 | B52: 全日制 | C52: 石油工程学院 | D52: 油气井工程 | E52: 熊浩 | F52: 114140151474476 | G52: 69 | H52: 63 | I52: 114 | J52: 130 | K52: 376
A53: 52 | B53: 全日制 | C53: 石油工程学院 | D53: 油气井工程 | E53: 廖亚民 | F53: 114140151514499 | G53: 63 | H53: 44 | I53: 86 | J53: 110 | K53: 303
A54: 53 | B54: 全日制 | C54: 石油工程学院 | D54: 油气井工程 | E54: 樊琳 | F54: 114140161034563 | G54: 58 | H54: 42 | I54: 82 | J54: 127 | K54: 309
A55: 54 | B55: 全日制 | C55: 石油工程学院 | D55: 油气井工程 | E55: 韩浩 | F55: 114140161034564 | G55: 57 | H55: 53 | I55: 73 | J55: 113 | K55: 296
A56: 55 | B56: 全日制 | C56: 石油工程学院 | D56: 油气井工程 | E56: 常向阳 | F56: 114140161054726 | G56: 65 | H56: 50 | I56: 67 | J56: 123 | K56: 305
A57: 56 | B57: 全日制 | C57: 石油工程学院 | D57: 油气井工程 | E57: 曹文琦 | F57: 114140161434788 | G57: 53 | H57: 52 | I57: 77 | J57: 93 | K57: 275
A58: 57 | B58: 全日制 | C58: 石油工程学院 | D58: 油气井工程 | E58: 李犇 | F58: 114140161434789 | G58: 62 | H58: 41 | I58: 63 | J58: 108 | K58: 274
A59: 58 | B59: 全日制 | C59: 石油工程学院 | D59: 油气井工程 | E59: 刘喆 | F59: 114140161434790 | G59: 62 | H59: 39 | I59: 84 | J59: 122 | K59: 307
A60: 59 | B60: 全日制 | C60: 石油工程学院 | D60: 油气井工程 | E60: 刘瑞 | F60: 114140161434791 | G60: 57 | H60: 49 | I60: 77 | J60: 98 | K60: 281
A61: 60 | B61: 全日制 | C61: 石油工程学院 | D61: 油气井工程 | E61: 柏侃侃 | F61: 114140165054986 | G61: 58 | H61: 58 | I61: 71 | J61: 118 | K61: 305
A62: 61 | B62: 全日制 | C62: 石油工程学院 | D62: 油气井工程 | E62: 顾森森 | F62: 114140165054987 | G62: 69 | H62: 66 | I62: 110 | J62: 119 | K62: 364
A63: 62 | B63: 全日制 | C63: 石油工程学院 | D63: 油气井工程 | E63: 何静 | F63: 114140165054988 | G63: 49 | H63: 50 | I63: 71 | J63: 119 | K63: 289
A64: 63 | B64: 全日制 | C64: 石油工程学院 | D64: 油气井工程 | E64: 孙振玮 | F64: 114140165054994 | G64: 62 | H64: 52 | I64: 71 | J64: 122 | K64: 307
A65: 64 | B65: 全日制 | C65: 石油工程学院 | D65: 油气井工程 | E65: 徐凯强 | F65: 114140165054997 | G65: 62 | H65: 51 | I65: 80 | J65: 129 | K65: 322
A66: 65 | B66: 全日制 | C66: 石油工程学院 | D66: 油气井工程 | E66: 尹添石 | F66: 114140165054998 | G66: 60 | H66: 63 | I66: 75 | J66: 134 | K66: 332
A67: 66 | B67: 全日制 | C67: 石油工程学院 | D67: 油气井工程 | E67: 张文宏 | F67: 114140165055002 | G67: 62 | H67: 48 | I67: 101 | J67: 110 | K67: 321
A68: 67 | B68: 全日制 | C68: 石油工程学院 | D68: 油气井工程 | E68: 张学铭 | F68: 114140165055003 | G68: 64 | H68: 65 | I68: 66 | J68: 123 | K68: 318
A69: 68 | B69: 全日制 | C69: 石油工程学院 | D69: 油气井工程 | E69: 朱岩 | F69: 114140165055005 | G69: 66 | H69: 64 | I69: 72 | J69: 129 | K69: 331
A70: 69 | B70: 全日制 | C70: 石油工程学院 | D70: 油气田开发工程 | E70: 王晓晨 | F70: 114140111640956 | G70: 58 | H70: 75 | I70: 114 | J70: 138 | K70: 385
A71: 70 | B71: 全日制 | C71: 石油工程学院 | D71: 油气田开发工程 | E71: 刘兴亮 | F71: 114140111640963 | G71: 66 | H71: 55 | I71: 73 | J71: 117 | K71: 311
A72: 71 | B72: 全日制 | C72: 石油工程学院 | D72: 油气田开发工程 | E72: 李文斌 | F72: 114140111640991 | G72: 67 | H72: 60 | I72: 87 | J72: 133 | K72: 347
A73: 72 | B73: 全日制 | C73: 石油工程学院 | D73: 油气田开发工程 | E73: 韩白璐 | F73: 114140111640998 | G73: 61 | H73: 63 | I73: 77 | J73: 123 | K73: 324
A74: 73 | B74: 全日制 | C74: 石油工程学院 | D74: 油气田开发工程 | E74: 李斌 | F74: 114140111641007 | G74: 71 | H74: 61 | I74: 78 | J74: 121 | K74: 331
A75: 74 | B75: 全日制 | C75: 石油工程学院 | D75: 油气田开发工程 | E75: 张绍琦 | F75: 114140111641318 | G75: 66 | H75: 59 | I75: 118 | J75: 128 | K75: 371
A76: 75 | B76: 全日制 | C76: 石油工程学院 | D76: 油气田开发工程 | E76: 蒋帅 | F76: 114140111641508 | G76: 66 | H76: 45 | I76: 97 | J76: 134 | K76: 342
A77: 76 | B77: 全日制 | C77: 石油工程学院 | D77: 油气田开发工程 | E77: 赵旭东 | F77: 114140111641521 | G77: 56 | H77: 62 | I77: 92 | J77: 130 | K77: 340
A78: 77 | B78: 全日制 | C78: 石油工程学院 | D78: 油气田开发工程 | E78: 再米热·艾买江 | F78: 114140111641528 | G78: 63 | H78: 72 | I78: 70 | J78: 109 | K78: 314
A79: 78 | B79: 全日制 | C79: 石油工程学院 | D79: 油气田开发工程 | E79: 陈帅 | F79: 114140111641591 | G79: 67 | H79: 59 | I79: 90 | J79: 122 | K79: 338
A80: 79 | B80: 全日制 | C80: 石油工程学院 | D80: 油气田开发工程 | E80: 王龙军 | F80: 114140111641603 | G80: 66 | H80: 56 | I80: 79 | J80: 145 | K80: 346
A81: 80 | B81: 全日制 | C81: 石油工程学院 | D81: 油气田开发工程 | E81: 张璨 | F81: 114140111641606 | G81: 74 | H81: 65 | I81: 86 | J81: 133 | K81: 358
A82: 81 | B82: 全日制 | C82: 石油工程学院 | D82: 油气田开发工程 | E82: 柯贤哲 | F82: 114140111641608 | G82: 61 | H82: 69 | I82: 115 | J82: 137 | K82: 382
A83: 82 | B83: 全日制 | C83: 石油工程学院 | D83: 油气田开发工程 | E83: 王彬宇 | F83: 114140111641610 | G83: 61 | H83: 49 | I83: 84 | J83: 135 | K83: 329
A84: 83 | B84: 全日制 | C84: 石油工程学院 | D84: 油气田开发工程 | E84: 田云飞 | F84: 114140111641611 | G84: 64 | H84: 64 | I84: 76 | J84: 132 | K84: 336
A85: 84 | B85: 全日制 | C85: 石油工程学院 | D85: 油气田开发工程 | E85: 张旭飞 | F85: 114140111641622 | G85: 65 | H85: 69 | I85: 89 | J85: 95 | K85: 318
A86: 85 | B86: 全日制 | C86: 石油工程学院 | D86: 油气田开发工程 | E86: 张龙龙 | F86: 114140111641655 | G86: 62 | H86: 52 | I86: 96 | J86: 116 | K86: 326
A87: 86 | B87: 全日制 | C87: 石油工程学院 | D87: 油气田开发工程 | E87: 熊国瑞 | F87: 114140111641661 | G87: 70 | H87: 44 | I87: 78 | J87: 130 | K87: 322
A88: 87 | B88: 全日制 | C88: 石油工程学院 | D88: 油气田开发工程 | E88: 杨金龙 | F88: 114140113021865 | G88: 74 | H88: 51 | I88: 84 | J88: 133 | K88: 342
A89: 88 | B89: 全日制 | C89: 石油工程学院 | D89: 油气田开发工程 | E89: 江修朝 | F89: 114140113021866 | G89: 73 | H89: 74 | I89: 100 | J89: 117 | K89: 364
A90: 89 | B90: 全日制 | C90: 石油工程学院 | D90: 油气田开发工程 | E90: 左传帅 | F90: 114140113021867 | G90: 66 | H90: 47 | I90: 102 | J90: 112 | K90: 327
A91: 90 | B91: 全日制 | C91: 石油工程学院 | D91: 油气田开发工程 | E91: 陈鹏印 | F91: 114140113031920 | G91: 64 | H91: 50 | I91: 75 | J91: 134 | K91: 323
A92: 91 | B92: 全日制 | C92: 石油工程学院 | D92: 油气田开发工程 | E92: 申宇哲 | F92: 114140113031924 | G92: 61 | H92: 40 | I92: 99 | J92: 122 | K92: 322
A93: 92 | B93: 全日制 | C93: 石油工程学院 | D93: 油气田开发工程 | E93: 高步栋 | F93: 114140114132324 | G93: 65 | H93: 80 | I93: 93 | J93: 139 | K93: 377
A94: 93 | B94: 全日制 | C94: 石油工程学院 | D94: 油气田开发工程 | E94: 马赫 | F94: 114140121102476 | G94: 63 | H94: 52 | I94: 97 | J94: 130 | K94: 342
A95: 94 | B95: 全日制 | C95: 石油工程学院 | D95: 油气田开发工程 | E95: 荣金曦 | F95: 114140121102477 | G95: 60 | H95: 50 | I95: 89 | J95: 119 | K95: 318
A96: 95 | B96: 全日制 | C96: 石油工程学院 | D96: 油气田开发工程 | E96: 杨海烽 | F96: 114140121102479 | G96: 67 | H96: 59 | I96: 92 | J96: 124 | K96: 342 | L96: 预录取
A97: 96 | B97: 全日制 | C97: 石油工程学院 | D97: 油气田开发工程 | E97: 王司琪 | F97: 114140121102488 | G97: 55 | H97: 66 | I97: 85 | J97: 132 | K97: 338
A98: 97 | B98: 全日制 | C98: 石油工程学院 | D98: 油气田开发工程 | E98: 宣文斌 | F98: 114140121102489 | G98: 69 | H98: 75 | I98: 97 | J98: 125 | K98: 366
A99: 98 | B99: 全日制 | C99: 石油工程学院 | D99: 油气田开发工程 | E99: 李捷涵 | F99: 114140122032670 | G99: 64 | H99: 61 | I99: 114 | J99: 121 | K99: 360
A100: 99 | B100: 全日制 | C100: 石油工程学院 | D100: 油气田开发工程 | E100: 王春秋 | F100: 114140122052680 | G100: 62 | H100: 42 | I100: 94 | J100: 136 | K100: 334
A101: 100 | B101: 全日制 | C101: 石油工程学院 | D101: 油气田开发工程 | E101: 冯亚斌 | F101: 114140123102742 | G101: 64 | H101: 51 | I101: 104 | J101: 130 | K101: 349
A102: 101 | B102: 全日制 | C102: 石油工程学院 | D102: 油气田开发工程 | E102: 姜帆 | F102: 114140123102745 | G102: 64 | H102: 60 | I102: 64 | J102: 136 | K102: 324
A103: 102 | B103: 全日制 | C103: 石油工程学院 | D103: 油气田开发工程 | E103: 李俊卫 | F103: 114140123102747 | G103: 59 | H103: 47 | I103: 78 | J103: 128 | K103: 312
A104: 103 | B104: 全日制 | C104: 石油工程学院 | D104: 油气田开发工程 | E104: 杨雪风 | F104: 114140123102753 | G104: 58 | H104: 38 | I104: 84 | J104: 130 | K104: 310
A105: 104 | B105: 全日制 | C105: 石油工程学院 | D105: 油气田开发工程 | E105: 白文鹏 | F105: 114140123102761 | G105: 67 | H105: 64 | I105: 91 | J105: 117 | K105: 339
A106: 105 | B106: 全日制 | C106: 石油工程学院 | D106: 油气田开发工程 | E106: 常家为 | F106: 114140123102762 | G106: 67 | H106: 50 | I106: 86 | J106: 107 | K106: 310
A107: 106 | B107: 全日制 | C107: 石油工程学院 | D107: 油气田开发工程 | E107: 王泽坤 | F107: 114140123102775 | G107: 64 | H107: 44 | I107: 78 | J107: 133 | K107: 319
A108: 107 | B108: 全日制 | C108: 石油工程学院 | D108: 油气田开发工程 | E108: 郑长伟 | F108: 114140123102782 | G108: 72 | H108: 50 | I108: 114 | J108: 131 | K108: 367
A109: 108 | B109: 全日制 | C109: 石油工程学院 | D109: 油气田开发工程 | E109: 闫成双 | F109: 114140123102783 | G109: 61 | H109: 54 | I109: 74 | J109: 143 | K109: 332 | L109: 预录取
A110: 109 | B110: 全日制 | C110: 石油工程学院 | D110: 油气田开发工程 | E110: 刘川 | F110: 114140123132842 | G110: 74 | H110: 71 | I110: 77 | J110: 130 | K110: 352
A111: 110 | B111: 全日制 | C111: 石油工程学院 | D111: 油气田开发工程 | E111: 杨金奇 | F111: 114140123222882 | G111: 57 | H111: 38 | I111: 89 | J111: 129 | K111: 313
A112: 111 | B112: 全日制 | C112: 石油工程学院 | D112: 油气田开发工程 | E112: 蒋孟晨 | F112: 114140133112979 | G112: 66 | H112: 75 | I112: 80 | J112: 134 | K112: 355
A113: 112 | B113: 全日制 | C113: 石油工程学院 | D113: 油气田开发工程 | E113: 孔文彬 | F113: 114140133112980 | G113: 68 | H113: 50 | I113: 117 | J113: 112 | K113: 347
A114: 113 | B114: 全日制 | C114: 石油工程学院 | D114: 油气田开发工程 | E114: 孙发涛 | F114: 114140137023221 | G114: 69 | H114: 38 | I114: 95 | J114: 141 | K114: 343
A115: 114 | B115: 全日制 | C115: 石油工程学院 | D115: 油气田开发工程 | E115: 张晟庭 | F115: 114140137023223 | G115: 76 | H115: 61 | I115: 126 | J115: 134 | K115: 397
A116: 115 | B116: 全日制 | C116: 石油工程学院 | D116: 油气田开发工程 | E116: 周彪 | F116: 114140137023224 | G116: 72 | H116: 62 | I116: 110 | J116: 128 | K116: 372
A117: 116 | B117: 全日制 | C117: 石油工程学院 | D117: 油气田开发工程 | E117: 陈可达 | F117: 114140137023225 | G117: 62 | H117: 44 | I117: 82 | J117: 119 | K117: 307
A118: 117 | B118: 全日制 | C118: 石油工程学院 | D118: 油气田开发工程 | E118: 王蓓东 | F118: 114140137023228 | G118: 73 | H118: 60 | I118: 106 | J118: 118 | K118: 357
A119: 118 | B119: 全日制 | C119: 石油工程学院 | D119: 油气田开发工程 | E119: 王聪 | F119: 114140137093573 | G119: 72 | H119: 56 | I119: 118 | J119: 143 | K119: 389
A120: 119 | B120: 全日制 | C120: 石油工程学院 | D120: 油气田开发工程 | E120: 温志远 | F120: 114140137173730 | G120: 70 | H120: 52 | I120: 93 | J120: 126 | K120: 341
A121: 120 | B121: 全日制 | C121: 石油工程学院 | D121: 油气田开发工程 | E121: 陈秀林 | F121: 114140142114063 | G121: 56 | H121: 63 | I121: 87 | J121: 125 | K121: 331
A122: 121 | B122: 全日制 | C122: 石油工程学院 | D122: 油气田开发工程 | E122: 韩江峡 | F122: 114140142114064 | G122: 63 | H122: 57 | I122: 110 | J122: 135 | K122: 365
A123: 122 | B123: 全日制 | C123: 石油工程学院 | D123: 油气田开发工程 | E123: 董文钢 | F123: 114140142114068 | G123: 73 | H123: 76 | I123: 115 | J123: 144 | K123: 408
A124: 123 | B124: 全日制 | C124: 石油工程学院 | D124: 油气田开发工程 | E124: 郭巧 | F124: 114140142114069 | G124: 58 | H124: 76 | I124: 105 | J124: 124 | K124: 363 | L124: 预录取
A125: 124 | B125: 全日制 | C125: 石油工程学院 | D125: 油气田开发工程 | E125: 金蕾 | F125: 114140142114073 | G125: 64 | H125: 51 | I125: 99 | J125: 123 | K125: 337 | L125: 预录取
A126: 125 | B126: 全日制 | C126: 石油工程学院 | D126: 油气田开发工程 | E126: 李得轩 | F126: 114140142114075 | G126: 45 | H126: 69 | I126: 99 | J126: 130 | K126: 343 | L126: 预录取
A127: 126 | B127: 全日制 | C127: 石油工程学院 | D127: 油气田开发工程 | E127: 刘淼淼 | F127: 114140142114079 | G127: 66 | H127: 60 | I127: 81 | J127: 117 | K127: 324
A128: 127 | B128: 全日制 | C128: 石油工程学院 | D128: 油气田开发工程 | E128: 皮之洋 | F128: 114140142114081 | G128: 69 | H128: 69 | I128: 67 | J128: 126 | K128: 331 | L128: 预录取
A129: 128 | B129: 全日制 | C129: 石油工程学院 | D129: 油气田开发工程 | E129: 杨博 | F129: 114140142114087 | G129: 59 | H129: 59 | I129: 97 | J129: 110 | K129: 325 | L129: 预录取
A130: 129 | B130: 全日制 | C130: 石油工程学院 | D130: 油气田开发工程 | E130: 姚远 | F130: 114140142114089 | G130: 58 | H130: 52 | I130: 101 | J130: 123 | K130: 334
A131: 130 | B131: 全日制 | C131: 石油工程学院 | D131: 油气田开发工程 | E131: 余诗浍 | F131: 114140142114090 | G131: 58 | H131: 67 | I131: 86 | J131: 98 | K131: 309
A132: 131 | B132: 全日制 | C132: 石油工程学院 | D132: 油气田开发工程 | E132: 张博文 | F132: 114140142114091 | G132: 65 | H132: 73 | I132: 113 | J132: 122 | K132: 373
A133: 132 | B133: 全日制 | C133: 石油工程学院 | D133: 油气田开发工程 | E133: 朱冬 | F133: 114140142114101 | G133: 70 | H133: 40 | I133: 116 | J133: 125 | K133: 351
A134: 133 | B134: 全日制 | C134: 石油工程学院 | D134: 油气田开发工程 | E134: 郭成 | F134: 114140142144153 | G134: 55 | H134: 44 | I134: 103 | J134: 121 | K134: 323
A135: 134 | B135: 全日制 | C135: 石油工程学院 | D135: 油气田开发工程 | E135: 让腾达 | F135: 114140142364185 | G135: 68 | H135: 74 | I135: 93 | J135: 134 | K135: 369
A136: 135 | B136: 全日制 | C136: 石油工程学院 | D136: 油气田开发工程 | E136: 刘莹 | F136: 114140142384192 | G136: 57 | H136: 65 | I136: 101 | J136: 118 | K136: 341
A137: 136 | B137: 全日制 | C137: 石油工程学院 | D137: 油气田开发工程 | E137: 陈嘉杰 | F137: 114140144054260 | G137: 69 | H137: 57 | I137: 57 | J137: 134 | K137: 317
A138: 137 | B138: 全日制 | C138: 石油工程学院 | D138: 油气田开发工程 | E138: 韩晓冰 | F138: 114140150144321 | G138: 67 | H138: 66 | I138: 65 | J138: 124 | K138: 322 | L138: 预录取
A139: 138 | B139: 全日制 | C139: 石油工程学院 | D139: 油气田开发工程 | E139: 田聪 | F139: 114140150144324 | G139: 69 | H139: 50 | I139: 60 | J139: 130 | K139: 309 | L139: 预录取
A140: 139 | B140: 全日制 | C140: 石油工程学院 | D140: 油气田开发工程 | E140: 徐雯婧 | F140: 114140150144325 | G140: 60 | H140: 55 | I140: 82 | J140: 124 | K140: 321
A141: 140 | B141: 全日制 | C141: 石油工程学院 | D141: 油气田开发工程 | E141: 黄紫阳 | F141: 114140151104364 | G141: 69 | H141: 54 | I141: 80 | J141: 128 | K141: 331
A142: 141 | B142: 全日制 | C142: 石油工程学院 | D142: 油气田开发工程 | E142: 李梦凡 | F142: 114140151104365 | G142: 64 | H142: 66 | I142: 70 | J142: 130 | K142: 330
A143: 142 | B143: 全日制 | C143: 石油工程学院 | D143: 油气田开发工程 | E143: 李清鲮 | F143: 114140151104366 | G143: 68 | H143: 61 | I143: 70 | J143: 110 | K143: 309
A144: 143 | B144: 全日制 | C144: 石油工程学院 | D144: 油气田开发工程 | E144: 屈龙 | F144: 114140151104367 | G144: 56 | H144: 66 | I144: 77 | J144: 112 | K144: 311
A145: 144 | B145: 全日制 | C145: 石油工程学院 | D145: 油气田开发工程 | E145: 王兴兴 | F145: 114140151104369 | G145: 65 | H145: 57 | I145: 65 | J145: 125 | K145: 312
A146: 145 | B146: 全日制 | C146: 石油工程学院 | D146: 油气田开发工程 | E146: 张梦园 | F146: 114140151104371 | G146: 64 | H146: 45 | I146: 111 | J146: 128 | K146: 348
A147: 146 | B147: 全日制 | C147: 石油工程学院 | D147: 油气田开发工程 | E147: 张永 | F147: 114140151104372 | G147: 53 | H147: 65 | I147: 102 | J147: 134 | K147: 354
A148: 147 | B148: 全日制 | C148: 石油工程学院 | D148: 油气田开发工程 | E148: 黄田 | F148: 114140151104375 | G148: 63 | H148: 52 | I148: 94 | J148: 129 | K148: 338
A149: 148 | B149: 全日制 | C149: 石油工程学院 | D149: 油气田开发工程 | E149: 龙海庆 | F149: 114140151104378 | G149: 66 | H149: 46 | I149: 89 | J149: 128 | K149: 329
A150: 149 | B150: 全日制 | C150: 石油工程学院 | D150: 油气田开发工程 | E150: 卢盼盼 | F150: 114140151104379 | G150: 58 | H150: 59 | I150: 115 | J150: 132 | K150: 364
A151: 150 | B151: 全日制 | C151: 石油工程学院 | D151: 油气田开发工程 | E151: 蒲平凡 | F151: 114140151104383 | G151: 68 | H151: 56 | I151: 95 | J151: 112 | K151: 331
A152: 151 | B152: 全日制 | C152: 石油工程学院 | D152: 油气田开发工程 | E152: 杨珊珊 | F152: 114140151104388 | G152: 69 | H152: 58 | I152: 70 | J152: 116 | K152: 313
A153: 152 | B153: 全日制 | C153: 石油工程学院 | D153: 油气田开发工程 | E153: 栾雨默 | F153: 114140151104391 | G153: 64 | H153: 47 | I153: 77 | J153: 122 | K153: 310
A154: 153 | B154: 全日制 | C154: 石油工程学院 | D154: 油气田开发工程 | E154: 杨鹏 | F154: 114140151424463 | G154: 72 | H154: 73 | I154: 95 | J154: 146 | K154: 386
A155: 154 | B155: 全日制 | C155: 石油工程学院 | D155: 油气田开发工程 | E155: 杨健 | F155: 114140151454468 | G155: 57 | H155: 59 | I155: 77 | J155: 130 | K155: 323
A156: 155 | B156: 全日制 | C156: 石油工程学院 | D156: 油气田开发工程 | E156: 詹慧丽 | F156: 114140151454469 | G156: 62 | H156: 68 | I156: 102 | J156: 138 | K156: 370
A157: 156 | B157: 全日制 | C157: 石油工程学院 | D157: 油气田开发工程 | E157: 陈洁怡 | F157: 114140151454470 | G157: 67 | H157: 60 | I157: 72 | J157: 120 | K157: 319
A158: 157 | B158: 全日制 | C158: 石油工程学院 | D158: 油气田开发工程 | E158: 管晶晶 | F158: 114140151474477 | G158: 66 | H158: 51 | I158: 109 | J158: 95 | K158: 321
A159: 158 | B159: 全日制 | C159: 石油工程学院 | D159: 油气田开发工程 | E159: 钟炜欣 | F159: 114140151484483 | G159: 62 | H159: 70 | I159: 96 | J159: 125 | K159: 353
A160: 159 | B160: 全日制 | C160: 石油工程学院 | D160: 油气田开发工程 | E160: 陈铎 | F160: 114140151514500 | G160: 68 | H160: 52 | I160: 94 | J160: 118 | K160: 332
A161: 160 | B161: 全日制 | C161: 石油工程学院 | D161: 油气田开发工程 | E161: 李万阳 | F161: 114140151514501 | G161: 56 | H161: 37 | I161: 105 | J161: 117 | K161: 315
A162: 161 | B162: 全日制 | C162: 石油工程学院 | D162: 油气田开发工程 | E162: 郑海钱 | F162: 114140151514502 | G162: 63 | H162: 62 | I162: 94 | J162: 113 | K162: 332
A163: 162 | B163: 全日制 | C163: 石油工程学院 | D163: 油气田开发工程 | E163: 段文豪 | F163: 114140161034572 | G163: 67 | H163: 46 | I163: 87 | J163: 123 | K163: 323
A164: 163 | B164: 全日制 | C164: 石油工程学院 | D164: 油气田开发工程 | E164: 蒋哲昊 | F164: 114140161034575 | G164: 60 | H164: 74 | I164: 83 | J164: 113 | K164: 330
A165: 164 | B165: 全日制 | C165: 石油工程学院 | D165: 油气田开发工程 | E165: 金青爽 | F165: 114140161034576 | G165: 61 | H165: 62 | I165: 83 | J165: 133 | K165: 339
A166: 165 | B166: 全日制 | C166: 石油工程学院 | D166: 油气田开发工程 | E166: 康瑛 | F166: 114140161034577 | G166: 57 | H166: 49 | I166: 78 | J166: 127 | K166: 311
A167: 166 | B167: 全日制 | C167: 石油工程学院 | D167: 油气田开发工程 | E167: 索杰林 | F167: 114140161034578 | G167: 66 | H167: 56 | I167: 78 | J167: 137 | K167: 337
A168: 167 | B168: 全日制 | C168: 石油工程学院 | D168: 油气田开发工程 | E168: 王靖茹 | F168: 114140161034579 | G168: 57 | H168: 61 | I168: 74 | J168: 131 | K168: 323
A169: 168 | B169: 全日制 | C169: 石油工程学院 | D169: 油气田开发工程 | E169: 周星雨 | F169: 114140161034581 | G169: 67 | H169: 51 | I169: 84 | J169: 138 | K169: 340
A170: 169 | B170: 全日制 | C170: 石油工程学院 | D170: 油气田开发工程 | E170: 高茵 | F170: 114140161034587 | G170: 61 | H170: 60 | I170: 88 | J170: 129 | K170: 338
A171: 170 | B171: 全日制 | C171: 石油工程学院 | D171: 油气田开发工程 | E171: 何安琪 | F171: 114140161034588 | G171: 72 | H171: 67 | I171: 83 | J171: 123 | K171: 345
A172: 171 | B172: 全日制 | C172: 石油工程学院 | D172: 油气田开发工程 | E172: 田花 | F172: 114140161034597 | G172: 60 | H172: 62 | I172: 107 | J172: 144 | K172: 373
A173: 172 | B173: 全日制 | C173: 石油工程学院 | D173: 油气田开发工程 | E173: 王文东 | F173: 114140161034599 | G173: 67 | H173: 54 | I173: 63 | J173: 135 | K173: 319
A174: 173 | B174: 全日制 | C174: 石油工程学院 | D174: 油气田开发工程 | E174: 王雨 | F174: 114140161034600 | G174: 63 | H174: 51 | I174: 93 | J174: 120 | K174: 327
A175: 174 | B175: 全日制 | C175: 石油工程学院 | D175: 油气田开发工程 | E175: 赵瑞成 | F175: 114140161034606 | G175: 55 | H175: 60 | I175: 83 | J175: 117 | K175: 315
A176: 175 | B176: 全日制 | C176: 石油工程学院 | D176: 油气田开发工程 | E176: 赵新龙 | F176: 114140165055009 | G176: 55 | H176: 59 | I176: 84 | J176: 119 | K176: 317
A177: 176 | B177: 全日制 | C177: 石油工程学院 | D177: 油气田开发工程 | E177: 程熊 | F177: 114140165055011 | G177: 67 | H177: 52 | I177: 85 | J177: 123 | K177: 327
A178: 177 | B178: 全日制 | C178: 石油工程学院 | D178: 油气田开发工程 | E178: 高鑫远 | F178: 114140165055012 | G178: 60 | H178: 45 | I178: 86 | J178: 137 | K178: 328
A179: 178 | B179: 全日制 | C179: 石油工程学院 | D179: 油气田开发工程 | E179: 侯代稳 | F179: 114140165055014 | G179: 62 | H179: 64 | I179: 77 | J179: 144 | K179: 347
A180: 179 | B180: 全日制 | C180: 石油工程学院 | D180: 油气田开发工程 | E180: 宋亚港 | F180: 114140165055017 | G180: 71 | H180: 55 | I180: 59 | J180: 141 | K180: 326
A181: 180 | B181: 全日制 | C181: 石油工程学院 | D181: 油气田开发工程 | E181: 王元昊 | F181: 114140165055020 | G181: 58 | H181: 41 | I181: 84 | J181: 124 | K181: 307
A182: 181 | B182: 全日制 | C182: 石油工程学院 | D182: 油气田开发工程 | E182: 颜若凡 | F182: 114140165055024 | G182: 65 | H182: 73 | I182: 67 | J182: 139 | K182: 344
A183: 182 | B183: 全日制 | C183: 石油工程学院 | D183: 油气田开发工程 | E183: 张捷方 | F183: 114140165055027 | G183: 60 | H183: 56 | I183: 84 | J183: 129 | K183: 329

Sheet 专业型
A1: 序号 | B1: 报考学习方式 | C1: 报考院系 | D1: 报考专业 | E1: 考生姓名 | F1: 考生编号 | G1: 政治理论成绩 | H1: 外国语成绩 | I1: 业务课一成绩 | J1: 业务课二成绩 | K1: 初试总成绩 | L1: 备注
A2: 1 | B2: 全日制 | C2: 石油工程学院 | D2: 资源与环境 | E2: 王志斌 | F2: 114140111641135 | G2: 59 | H2: 62 | I2: 86 | J2: 100 | K2: =SUM(G2:J2) -> 307
A3: 2 | B3: 全日制 | C3: 石油工程学院 | D3: 资源与环境 | E3: 张东悦 | F3: 114140111641202 | G3: 56 | H3: 63 | I3: 72 | J3: 108 | K3: =SUM(G3:J3) -> 299
A4: 3 | B4: 全日制 | C4: 石油工程学院 | D4: 资源与环境 | E4: 张雯 | F4: 114140111641234 | G4: 61 | H4: 50 | I4: 95 | J4: 146 | K4: =SUM(G4:J4) -> 352
A5: 4 | B5: 全日制 | C5: 石油工程学院 | D5: 资源与环境 | E5: 盛杭 | F5: 114140111641541 | G5: 61 | H5: 66 | I5: 93 | J5: 69 | K5: =SUM(G5:J5) -> 289
A6: 5 | B6: 全日制 | C6: 石油工程学院 | D6: 资源与环境 | E6: 苏云磊 | F6: 114140113021864 | G6: 68 | H6: 46 | I6: 70 | J6: 115 | K6: =SUM(G6:J6) -> 299
A7: 6 | B7: 全日制 | C7: 石油工程学院 | D7: 资源与环境 | E7: 刘雨龙 | F7: 114140113031917 | G7: 67 | H7: 61 | I7: 81 | J7: 123 | K7: =SUM(G7:J7) -> 332
A8: 7 | B8: 全日制 | C8: 石油工程学院 | D8: 资源与环境 | E8: 蒲保彪 | F8: 114140113031923 | G8: 69 | H8: 66 | I8: 71 | J8: 131 | K8: =SUM(G8:J8) -> 337
A9: 8 | B9: 全日制 | C9: 石油工程学院 | D9: 资源与环境 | E9: 赵晓航 | F9: 114140113031926 | G9: 70 | H9: 66 | I9: 87 | J9: 125 | K9: =SUM(G9:J9) -> 348
A10: 9 | B10: 全日制 | C10: 石油工程学院 | D10: 资源与环境 | E10: 丁亚萍 | F10: 114140113031930 | G10: 72 | H10: 75 | I10: 60 | J10: 61 | K10: =SUM(G10:J10) -> 268
A11: 10 | B11: 全日制 | C11: 石油工程学院 | D11: 资源与环境 | E11: 盖磊 | F11: 114140113031931 | G11: 65 | H11: 51 | I11: 85 | J11: 111 | K11: =SUM(G11:J11) -> 312
A12: 11 | B12: 全日制 | C12: 石油工程学院 | D12: 资源与环境 | E12: 高志永 | F12: 114140113031932 | G12: 64 | H12: 61 | I12: 77 | J12: 64 | K12: =SUM(G12:J12) -> 266
A13: 12 | B13: 全日制 | C13: 石油工程学院 | D13: 资源与环境 | E13: 周西鹤 | F13: 114140113031936 | G13: 66 | H13: 53 | I13: 87 | J13: 117 | K13: =SUM(G13:J13) -> 323
A14: 13 | B14: 全日制 | C14: 石油工程学院 | D14: 资源与环境 | E14: 张金水 | F14: 114140114112309 | G14: 56 | H14: 55 | I14: 74 | J14: 125 | K14: =SUM(G14:J14) -> 310
A15: 14 | B15: 全日制 | C15: 石油工程学院 | D15: 资源与环境 | E15: 李子贺 | F15: 114140121102473 | G15: 65 | H15: 74 | I15: 90 | J15: 143 | K15: =SUM(G15:J15) -> 372
A16: 15 | B16: 全日制 | C16: 石油工程学院 | D16: 资源与环境 | E16: 刘明帅 | F16: 114140121102474 | G16: 59 | H16: 67 | I16: 80 | J16: 121 | K16: =SUM(G16:J16) -> 327
A17: 16 | B17: 全日制 | C17: 石油工程学院 | D17: 资源与环境 | E17: 李彤 | F17: 114140121102483 | G17: 65 | H17: 48 | I17: 74 | J17: 103 | K17: =SUM(G17:J17) -> 290
A18: 17 | B18: 全日制 | C18: 石油工程学院 | D18: 资源与环境 | E18: 吕乾 | F18: 114140121132596 | G18: 62 | H18: 53 | I18: 66 | J18: 106 | K18: =SUM(G18:J18) -> 287
A19: 18 | B19: 全日制 | C19: 石油工程学院 | D19: 资源与环境 | E19: 王家奇 | F19: 114140121192629 | G19: 59 | H19: 43 | I19: 83 | J19: 97 | K19: =SUM(G19:J19) -> 282
A20: 19 | B20: 全日制 | C20: 石油工程学院 | D20: 资源与环境 | E20: 武家明 | F20: 114140123102752 | G20: 61 | H20: 51 | I20: 80 | J20: 120 | K20: =SUM(G20:J20) -> 312
A21: 20 | B21: 全日制 | C21: 石油工程学院 | D21: 资源与环境 | E21: 李成格尔 | F21: 114140123102769 | G21: 50 | H21: 40 | I21: 67 | J21: 109 | K21: =SUM(G21:J21) -> 266
A22: 21 | B22: 全日制 | C22: 石油工程学院 | D22: 资源与环境 | E22: 杨桂 | F22: 114140123142848 | G22: 60 | H22: 48 | I22: 64 | J22: 119 | K22: =SUM(G22:J22) -> 291
A23: 22 | B23: 全日制 | C23: 石油工程学院 | D23: 资源与环境 | E23: 袁学强 | F23: 114140123142850 | G23: 61 | H23: 52 | I23: 59 | J23: 120 | K23: =SUM(G23:J23) -> 292
A24: 23 | B24: 全日制 | C24: 石油工程学院 | D24: 资源与环境 | E24: 赵红妍 | F24: 114140132162934 | G24: 64 | H24: 72 | I24: 122 | J24: 139 | K24: =SUM(G24:J24) -> 397
A25: 24 | B25: 全日制 | C25: 石油工程学院 | D25: 资源与环境 | E25: 刘人杰 | F25: 114140141143868 | G25: 69 | H25: 62 | I25: 62 | J25: 109 | K25: =SUM(G25:J25) -> 302
A26: 25 | B26: 全日制 | C26: 石油工程学院 | D26: 资源与环境 | E26: 马连瑞 | F26: 114140141173900 | G26: 66 | H26: 66 | I26: 72 | J26: 111 | K26: =SUM(G26:J26) -> 315
A27: 26 | B27: 全日制 | C27: 石油工程学院 | D27: 资源与环境 | E27: 张涛 | F27: 114140141323944 | G27: 62 | H27: 55 | I27: 61 | J27: 119 | K27: =SUM(G27:J27) -> 297
A28: 27 | B28: 全日制 | C28: 石油工程学院 | D28: 资源与环境 | E28: 黄友晴 | F28: 114140142114065 | G28: 49 | H28: 75 | I28: 96 | J28: 120 | K28: =SUM(G28:J28) -> 340 | L28: 预录取
A29: 28 | B29: 全日制 | C29: 石油工程学院 | D29: 资源与环境 | E29: 黎玉婷 | F29: 114140150144317 | G29: 50 | H29: 56 | I29: 65 | J29: 130 | K29: =SUM(G29:J29) -> 301 | L29: 预录取
A30: 29 | B30: 全日制 | C30: 石油工程学院 | D30: 资源与环境 | E30: 邹婉娟 | F30: 114140151484484 | G30: 57 | H30: 67 | I30: 90 | J30: 105 | K30: =SUM(G30:J30) -> 319
A31: 30 | B31: 全日制 | C31: 石油工程学院 | D31: 资源与环境 | E31: 许永彬 | F31: 114140161034580 | G31: 54 | H31: 59 | I31: 72 | J31: 120 | K31: =SUM(G31:J31) -> 305 | L31: 预录取
A32: 31 | B32: 全日制 | C32: 石油工程学院 | D32: 资源与环境 | E32: 王莉娟 | F32: 114140161034598 | G32: 64 | H32: 73 | I32: 69 | J32: 130 | K32: =SUM(G32:J32) -> 336
A33: 32 | B33: 全日制 | C33: 石油工程学院 | D33: 资源与环境 | E33: 张文辉 | F33: 114140161034604 | G33: 56 | H33: 58 | I33: 64 | J33: 127 | K33: =SUM(G33:J33) -> 305
A34: 33 | B34: 全日制 | C34: 石油工程学院 | D34: 资源与环境 | E34: 刘文辉 | F34: 114140161334768 | G34: 62 | H34: 52 | I34: 61 | J34: 117 | K34: =SUM(G34:J34) -> 292
A35: 34 | B35: 全日制 | C35: 石油工程学院 | D35: 资源与环境 | E35: 高飞 | F35: 114140161344771 | G35: 63 | H35: 63 | I35: 89 | J35: 105 | K35: =SUM(G35:J35) -> 320
A36: 35 | B36: 全日制 | C36: 石油工程学院 | D36: 资源与环境 | E36: 罗江伟 | F36: 114140161474810 | G36: 60 | H36: 71 | I36: 79 | J36: 130 | K36: =SUM(G36:J36) -> 340
A37: 36 | B37: 全日制 | C37: 石油工程学院 | D37: 资源与环境 | E37: 方明星 | F37: 114140165034947 | G37: 64 | H37: 45 | I37: 68 | J37: 110 | K37: =SUM(G37:J37) -> 287
A38: 37 | B38: 全日制 | C38: 石油工程学院 | D38: 资源与环境 | E38: 苗留洁 | F38: 114140165054992 | G38: 51 | H38: 46 | I38: 65 | J38: 118 | K38: =SUM(G38:J38) -> 280
A39: 38 | B39: 全日制 | C39: 石油工程学院 | D39: 资源与环境 | E39: 莫钜峰 | F39: 114140165054993 | G39: 65 | H39: 52 | I39: 71 | J39: 139 | K39: =SUM(G39:J39) -> 327
A40: 39 | B40: 全日制 | C40: 石油工程学院 | D40: 资源与环境 | E40: 卫博尧 | F40: 114140165055023 | G40: 61 | H40: 56 | I40: 70 | J40: 97 | K40: =SUM(G40:J40) -> 284
A41: 40 | B41: 非全日制 | C41: 石油工程学院 | D41: 工程管理 | E41: 王军 | F41: 114140511640794 | G41: 117 | H41: 67 | I41: 0 | J41: 0 | K41: =SUM(G41:J41) -> 184
A42: 41 | B42: 非全日制 | C42: 石油工程学院 | D42: 工程管理 | E42: 齐得晟 | F42: 114140511640813 | G42: 106 | H42: 73 | I42: 0 | J42: 0 | K42: =SUM(G42:J42) -> 179
A43: 42 | B43: 非全日制 | C43: 石油工程学院 | D43: 工程管理 | E43: 金学诗 | F43: 114140542474203 | G43: 119 | H43: 58 | I43: 0 | J43: 0 | K43: =SUM(G43:J43) -> 177
A44: 43 | B44: 非全日制 | C44: 石油工程学院 | D44: 工程管理 | E44: 陈刚 | F44: 114140565024874 | G44: 122 | H44: 64 | I44: 0 | J44: 0 | K44: =SUM(G44:J44) -> 186
A45: 44 | B45: 非全日制 | C45: 石油工程学院 | D45: 工程管理 | E45: 林敏 | F45: 114140565024897 | G45: 115 | H45: 78 | I45: 0 | J45: 0 | K45: =SUM(G45:J45) -> 193
A46: 45 | B46: 非全日制 | C46: 石油工程学院 | D46: 工程管理 | E46: 荣玉健 | F46: 114140565024909 | G46: 122 | H46: 68 | I46: 0 | J46: 0 | K46: =SUM(G46:J46) -> 190
A47: 46 | B47: 非全日制 | C47: 石油工程学院 | D47: 工程管理 | E47: 韦佳欣 | F47: 114140565024919 | G47: 114 | H47: 78 | I47: 0 | J47: 0 | K47: =SUM(G47:J47) -> 192
A48: 47 | B48: 非全日制 | C48: 石油工程学院 | D48: 工程管理 | E48: 许海威 | F48: 114140565024925 | G48: 109 | H48: 75 | I48: 0 | J48: 0 | K48: =SUM(G48:J48) -> 184
A49: 48 | B49: 非全日制 | C49: 石油工程学院 | D49: 工程管理 | E49: 张涵宇 | F49: 114140565024931 | G49: 111 | H49: 72 | I49: 0 | J49: 0 | K49: =SUM(G49:J49) -> 183
A50: 49 | B50: 非全日制 | C50: 石油工程学院 | D50: 工程管理 | E50: 张永刚 | F50: 114140565024938 | G50: 135 | H50: 61 | I50: 0 | J50: 0 | K50: =SUM(G50:J50) -> 196
A51: 50 | B51: 非全日制 | C51: 石油工程学院 | D51: 工程管理 | E51: 巴合江·努尔阿合买提 | F51: 114140565065108 | G51: 108 | H51: 79 | I51: 0 | J51: 0 | K51: =SUM(G51:J51) -> 187
A52: 51 | B52: 非全日制 | C52: 石油工程学院 | D52: 资源与环境 | E52: 赵海勇 | F52: 114140111641162 | G52: 68 | H52: 72 | I52: 87 | J52: 141 | K52: =SUM(G52:J52) -> 368
A53: 52 | B53: 非全日制 | C53: 石油工程学院 | D53: 资源与环境 | E53: 徐德利 | F53: 114140111641179 | G53: 52 | H53: 49 | I53: 69 | J53: 98 | K53: =SUM(G53:J53) -> 268
A54: 53 | B54: 非全日制 | C54: 石油工程学院 | D54: 资源与环境 | E54: 于洋 | F54: 114140111641195 | G54: 68 | H54: 74 | I54: 80 | J54: 145 | K54: =SUM(G54:J54) -> 367
A55: 54 | B55: 非全日制 | C55: 石油工程学院 | D55: 资源与环境 | E55: 韩颂洋 | F55: 114140111641197 | G55: 57 | H55: 77 | I55: 61 | J55: 114 | K55: =SUM(G55:J55) -> 309
A56: 55 | B56: 非全日制 | C56: 石油工程学院 | D56: 资源与环境 | E56: 朱高科 | F56: 114140111641264 | G56: 61 | H56: 61 | I56: 97 | J56: 142 | K56: =SUM(G56:J56) -> 361
A57: 56 | B57: 非全日制 | C57: 石油工程学院 | D57: 资源与环境 | E57: 吕小明 | F57: 114140111641355 | G57: 63 | H57: 62 | I57: 59 | J57: 113 | K57: =SUM(G57:J57) -> 297
A58: 57 | B58: 非全日制 | C58: 石油工程学院 | D58: 资源与环境 | E58: 邓家胜 | F58: 114140111641365 | G58: 57 | H58: 45 | I58: 61 | J58: 129 | K58: =SUM(G58:J58) -> 292
A59: 58 | B59: 非全日制 | C59: 石油工程学院 | D59: 资源与环境 | E59: 潘洁 | F59: 114140111641367 | G59: 61 | H59: 68 | I59: 61 | J59: 133 | K59: =SUM(G59:J59) -> 323
A60: 59 | B60: 非全日制 | C60: 石油工程学院 | D60: 资源与环境 | E60: 李光祥 | F60: 114140111641558 | G60: 47 | H60: 62 | I60: 57 | J60: 126 | K60: =SUM(G60:J60) -> 292
A61: 60 | B61: 非全日制 | C61: 石油工程学院 | D61: 资源与环境 | E61: 李正楠 | F61: 114140121172616 | G61: 57 | H61: 70 | I61: 82 | J61: 103 | K61: =SUM(G61:J61) -> 312
A62: 61 | B62: 非全日制 | C62: 石油工程学院 | D62: 资源与环境 | E62: 杨晓磊 | F62: 114140123152860 | G62: 51 | H62: 72 | I62: 58 | J62: 95 | K62: =SUM(G62:J62) -> 276
A63: 62 | B63: 非全日制 | C63: 石油工程学院 | D63: 资源与环境 | E63: 邓小牛 | F63: 114140150214334 | G63: 62 | H63: 73 | I63: 62 | J63: 97 | K63: =SUM(G63:J63) -> 294
